{"text_format":"1","workbook":"xlsx","n_sheets":3,"sheets":["Sheet1","Sheet2","Sheet3"],"not_rendered":{"charts":0,"images":0,"macros":0,"external_links":0,"defined_names":2,"comments":0,"pivot_tables":0},"unopened":[],"bounds":{"document_bytes":16777216,"sheet_cells":100000,"rows_first":2000,"rows_last":500,"rows_between":2000,"halvings":0,"cell_chars":16384,"cell_head_chars":4096},"cells_cut":0,"cells_raw":0,"read":"whole","date_system":"1900"}

{"sheet":"Sheet1","index":0,"n_rows":101,"n_cols":13,"rows_kept":101,"cut":false,"hidden":false,"merged":[]}
["Employee's Pay Roll List"]
[]
[]
[null,"EmpID","FirstName","LastName","DateHired","1st/2nd/3rd Shift","Division Mgr","Dept Code","DeptName","Division","Hours","PayRate","GrossPay"]
[null,"EMP154","Donald","Dixon-Waite","2002-05-02","3rd Shift","Tom Thomas","SD","Shipping Dock","Anacortes",40,23,{"$f":"K5*L5","v":920}]
[null,"EMP189","Rose","Miller","2002-04-23","3rd Shift","Tom Thomas","SD","Shipping Dock","Anacortes",40,24,960]
[null,"EMP208","Donald","Wiggs","2002-05-02","2nd Shift","Tom Thomas","SD","Shipping Dock","Anacortes",40,23,920]
[null,"EMP124","Liza","Able","2002-07-04","1st Shift","Matt Mason","SD","Shipping Dock","Bremerton",32,22.25,712]
[null,"EMP213","MaryAnne","Fontaine","2002-07-22","3rd Shift","Matt Mason","SD","Shipping Dock","Bremerton",36,15.45,556.19999999999993]
[null,"EMP159","Mary","Hodge","2002-07-22","1st Shift","Matt Mason","SD","Shipping Dock","Bremerton",36,15.45,556.19999999999993]
[null,"EMP134","Ellen","Barton","2003-04-23","1st Shift","Bobbie Brown","SD","Shipping Dock","Hoquiam",40,21.5,860]
[null,"EMP169","Sandra","Hodge","2002-05-11","3rd Shift","Bobbie Brown","SD","Shipping Dock","Hoquiam",40,22,880]
[null,"EMP149","Sandrae","Corwick","2002-07-22","3rd Shift","Kathy Kate","SD","Shipping Dock","Sedro Woolley",40,14,560]
[null,"EMP203","Sandrae","Harley","2002-07-22","2nd Shift","Kathy Kate","SD","Shipping Dock","Sedro Woolley",40,14,560]
[null,"EMP184","Evelyn","Mann","2002-08-09","1st Shift","Kathy Kate","SD","Shipping Dock","Sedro Woolley",40,23,920]
[null,"EMP129","Gail","Aruda","2002-05-11","1st Shift","James Jones","SD","Shipping Dock","Walla Walla",40,18.5,740]
[null,"EMP164","Susan","Gonzales","2002-03-19","1st Shift","James Jones","SD","Shipping Dock","Walla Walla",32,17,544]
[null,"EMP144","Linda","Cash","2003-03-19","1st Shift","Yola Young","SD","Shipping Dock","Yakima",40,24.75,990]
[null,"EMP198","Johnny","Cash","2003-03-19","3rd Shift","Yola Young","SD","Shipping Dock","Yakima",40,24.75,990]
[null,"EMP179","Tommie","Larssen","2002-11-04","3rd Shift","Yola Young","SD","Shipping Dock","Yakima",40,21.8,872]
[null,"EMP147","Brent","Cooper","2002-05-11","2nd Shift","Tom Thomas","LD","Loading Dock","Anacortes",40,18,720]
[null,"EMP201","Mike","Davison","2002-05-11","1st Shift","Tom Thomas","LD","Loading Dock","Anacortes",40,18,720]
[null,"EMP182","Karen","Lin","2002-03-19","1st Shift","Tom Thomas","LD","Loading Dock","Anacortes",40,17,680]
[null,"EMP152","Randy","Cummins","2002-08-09","2nd Shift","Matt Mason","LD","Loading Dock","Bremerton",40,21,840]
[null,"EMP206","Randy","Cumminston","2002-08-09","1st Shift","Matt Mason","LD","Loading Dock","Bremerton",40,21,840]
[null,"EMP187","Sam","McKormick","2002-08-27","3rd Shift","Matt Mason","LD","Loading Dock","Bremerton",40,22,880]
[null,"EMP127","Maxine","Al-Sabah","2002-03-19","2nd Shift","Bobbie Brown","LD","Loading Dock","Hoquiam",36,23,828]
[null,"EMP162","Lisa","Gladstone","2002-11-04","1st Shift","Bobbie Brown","LD","Loading Dock","Hoquiam",40,24,960]
[null,"EMP142","Frank","Brwyne","2002-08-27","1st Shift","Kathy Kate","LD","Loading Dock","Sedro Woolley",40,22.25,890]
[null,"EMP177","Karen","Lampstone","2002-09-14","3rd Shift","Kathy Kate","LD","Loading Dock","Sedro Woolley",40,15.35,614]
[null,"EMP177","Karen","Lampstone","2002-09-14","2nd Shift","Kathy Kate","LD","Loading Dock","Sedro Woolley",40,15.35,614]
[null,"EMP196","Frank","Martinez","2002-08-27","3rd Shift","Kathy Kate","LD","Loading Dock","Sedro Woolley",40,22.25,890]
[null,"EMP157","Tuome","Fein","2002-11-04","2nd Shift","James Jones","LD","Loading Dock","Walla Walla",40,23,920]
[null,"EMP192","Frank","Mueller","2002-07-22","3rd Shift","James Jones","LD","Loading Dock","Walla Walla",40,18,720]
[null,"EMP211","Autumn","Wiggs","2002-11-04","1st Shift","James Jones","LD","Loading Dock","Walla Walla",40,23,920]
[null,"EMP137","Allen","Bell","2002-07-22","2nd Shift","Yola Young","LD","Loading Dock","Yakima",40,17.25,690]
[null,"EMP172","David","Kane","2002-04-23","1st Shift","Yola Young","LD","Loading Dock","Yakima",32,23.25,{"$f":"K37*L37","v":744}]
[null,"EMP140","Toni","Berwick","2002-11-04","1st Shift","Tom Thomas","BP","Box Packing","Anacortes",32,14,448]
[null,"EMP194","Toni","Braswell","2002-11-04","3rd Shift","Tom Thomas","BP","Box Packing","Anacortes",32,14,448]
[null,"EMP175","Jessica","Kellerman","2002-07-22","3rd Shift","Tom Thomas","BP","Box Packing","Anacortes",36,23.25,837]
[null,"EMP175","Jessica","Kellerman","2002-07-22","2nd Shift","Tom Thomas","BP","Box Packing","Anacortes",36,23.25,837]
[null,"EMP145","Burt","Chu","2002-09-14","1st Shift","Matt Mason","BP","Box Packing","Bremerton",40,23,920]
[null,"EMP199","Linda","Chu","2002-09-14","3rd Shift","Matt Mason","BP","Box Packing","Bremerton",40,23,920]
[null,"EMP180","Iain","Lempert","2002-10-02","1st Shift","Matt Mason","BP","Box Packing","Bremerton",32,24,768]
[null,"EMP209","Ellen","Cartwright","2002-07-22","2nd Shift","Bobbie Brown","BP","Box Packing","Hoquiam",40,17,680]
[null,"EMP155","Ellen","Dorfberg","2002-07-22","3rd Shift","Bobbie Brown","BP","Box Packing","Hoquiam",40,17,680]
[null,"EMP190","Dennis","Morton","2002-04-23","1st Shift","Bobbie Brown","BP","Box Packing","Hoquiam",40,23.45,938]
[null,"EMP135","Felix","Bates","2002-10-02","2nd Shift","Kathy Kate","BP","Box Packing","Sedro Woolley",36,24,864]
[null,"EMP170","Everett","Homes","2002-10-20","1st Shift","Kathy Kate","BP","Box Packing","Sedro Woolley",40,21,840]
[null,"EMP150","Phillip","Coyne","2003-04-23","3rd Shift","James Jones","BP","Box Packing","Walla Walla",40,15.35,614]
[null,"EMP185","Lise-Anne","Martinez","2002-05-11","1st Shift","James Jones","BP","Box Packing","Walla Walla",40,14.25,570]
[null,"EMP204","Phillip","Sooth","2003-04-23","2nd Shift","James Jones","BP","Box Packing","Walla Walla",40,15.35,614]
[null,"EMP125","Robert","Albert","2002-10-20","3rd Shift","Brenda Bark","BP","Box Packing","Wenatchee",40,21,840]
[null,"EMP214","Tadeuz","Flores","2002-11-07","2nd Shift","Brenda Bark","BP","Box Packing","Wenatchee",40,22,880]
[null,"EMP160","Tadeuz","Foss","2002-11-07","1st Shift","Brenda Bark","BP","Box Packing","Wenatchee",40,22,880]
[null,"EMP130","Alyssa","Asonte","2002-05-11","3rd Shift","Yola Young","BP","Box Packing","Yakima",40,23,920]
[null,"EMP165","Sara","Gorton","2002-05-29","2nd Shift","Yola Young","BP","Box Packing","Yakima",40,18.350000000000001,734]
[null,"EMP126","Howard","Alexi","2002-04-23","3rd Shift","Tom Thomas","PW","Plastic Wrap","Anacortes",40,24,960]
[null,"EMP161","Midori","Franklin","2002-05-11","2nd Shift","Tom Thomas","PW","Plastic Wrap","Anacortes",40,21,840]
[null,"EMP131","Sheryl","Bankler","2002-10-20","3rd Shift","Matt Mason","PW","Plastic Wrap","Bremerton",40,14,560]
[null,"EMP166","Alice","Hapsbuch","2002-11-07","2nd Shift","Matt Mason","PW","Plastic Wrap","Bremerton",40,23,920]
[null,"EMP141","Jeremy","Boughton","2002-05-11","3rd Shift","Bobbie Brown","PW","Plastic Wrap","Hoquiam",40,15,600]
[null,"EMP195","Jeremy","Johnston","2002-05-11","2nd Shift","Bobbie Brown","PW","Plastic Wrap","Hoquiam",40,15,600]
[null,"EMP176","Tom","Kourios","2002-05-29","1st Shift","Bobbie Brown","PW","Plastic Wrap","Hoquiam",40,14,560]
[null,"EMP176","Tom","Kourios","2002-05-29","3rd Shift","Bobbie Brown","PW","Plastic Wrap","Hoquiam",40,14,560]
[null,"EMP156","Nate","Farley","2002-11-07","2nd Shift","Kathy Kate","PW","Plastic Wrap","Sedro Woolley",32,18.75,600]
[null,"EMP210","Nathalie","Farley","2002-11-07","1st Shift","Kathy Kate","PW","Plastic Wrap","Sedro Woolley",32,18.75,600]
[null,"EMP191","Sherrie","Mueller","2002-11-25","2nd Shift","Kathy Kate","PW","Plastic Wrap","Sedro Woolley",36,17.25,621]
[null,"EMP136","Mark","Beech","2002-05-29","3rd Shift","James Jones","PW","Plastic Wrap","Walla Walla",40,23,{"$f":"K69*L69","v":920}]
[null,"EMP171","Pete","Johnson","2002-06-16","3rd Shift","James Jones","PW","Plastic Wrap","Walla Walla",40,24,960]
[null,"EMP139","Sam","Berg","2002-08-09","1st Shift","Brenda Bark","PW","Plastic Wrap","Wenatchee",40,23.75,950]
[null,"EMP146","Matt","Constance","2002-11-25","3rd Shift","Brenda Bark","PW","Plastic Wrap","Wenatchee",40,17,680]
[null,"EMP200","Matt","Cooper","2002-11-25","2nd Shift","Brenda Bark","PW","Plastic Wrap","Wenatchee",40,17,680]
[null,"EMP167","Cindy","Hardy","2002-10-02","3rd Shift","Brenda Bark","PW","Plastic Wrap","Wenatchee",36,14.25,513]
[null,"EMP181","Alexandra","Levine","2002-05-02","3rd Shift","Brenda Bark","PW","Plastic Wrap","Wenatchee",40,23.35,934]
[null,"EMP151","Ariel","Cronwith","2002-06-16","2nd Shift","Yola Young","PW","Plastic Wrap","Yakima",36,22,792]
[null,"EMP186","Bob","McGuire","2002-07-04","2nd Shift","Yola Young","PW","Plastic Wrap","Yakima",40,15.5,620]
[null,"EMP205","Ariel","Mitchell","2002-06-16","1st Shift","Yola Young","PW","Plastic Wrap","Yakima",36,22,792]
[null,"EMP133","Kendrick","Barth","2002-05-29","2nd Shift","Tom Thomas","HR","Human Resources","Anacortes",40,22,880]
[null,"EMP168","Tammy","Henders","2002-06-16","1st Shift","Tom Thomas","HR","Human Resources","Anacortes",40,15,600]
[null,"EMP138","Ari","Bellwood","2002-11-25","2nd Shift","Matt Mason","HR","Human Resources","Bremerton",40,18,720]
[null,"EMP173","Jules","Kaneko","2002-05-02","3rd Shift","Matt Mason","HR","Human Resources","Bremerton",40,17,680]
[null,"EMP173","Jules","Kaneko","2002-05-02","2nd Shift","Matt Mason","HR","Human Resources","Bremerton",40,17,680]
[null,"EMP148","Robert","Cortlandt","2002-06-16","1st Shift","Bobbie Brown","HR","Human Resources","Hoquiam",32,23,736]
[null,"EMP202","Robert","Findermire","2002-06-16","2nd Shift","Bobbie Brown","HR","Human Resources","Hoquiam",32,23,736]
[null,"EMP183","Lisa","Maguire","2002-07-04","2nd Shift","Bobbie Brown","HR","Human Resources","Hoquiam",36,18.350000000000001,660.6]
[null,"EMP128","Joe","Alstain","2002-05-02","3rd Shift","Kathy Kate","HR","Human Resources","Sedro Woolley",40,17,680]
[null,"EMP163","Bill","Goldberg","2002-04-23","3rd Shift","Kathy Kate","HR","Human Resources","Sedro Woolley",40,23.25,930]
[null,"EMP143","Ralph","Cane","2002-07-04","2nd Shift","James Jones","HR","Human Resources","Walla Walla",36,21,756]
[null,"EMP197","Ralph","Caneton","2002-07-04","1st Shift","James Jones","TG","Training Group","Walla Walla",36,21,756]
[null,"EMP178","Leslie","Lark","2002-07-22","2nd Shift","James Jones","TG","Training Group","Walla Walla",40,22,880]
[null,"EMP132","Molly","Barber","2002-09-14","2nd Shift","Brenda Bark","TG","Training Group","Wenatchee",32,15.35,491.2]
[null,"EMP153","Bobby","Davison","2002-04-23","1st Shift","Brenda Bark","TG","Training Group","Wenatchee",40,24.45,978]
[null,"EMP207","Roberta","Davison","2002-04-23","3rd Shift","Brenda Bark","TG","Training Group","Wenatchee",40,24.45,978]
[null,"EMP174","Pam","Kegler","2002-08-27","2nd Shift","Brenda Bark","TG","Training Group","Wenatchee",40,18,720]
[null,"EMP174","Pam","Kegler","2002-08-27","1st Shift","Brenda Bark","TG","Training Group","Wenatchee",40,18,720]
[null,"EMP188","Theo","Melendez","2002-05-11","2nd Shift","Brenda Bark","TG","Training Group","Wenatchee",32,21.25,680]
[null,"EMP123","Hazel","Abdul","2002-07-22","1st Shift","Yola Young","TG","Training Group","Yakima",40,15,600]
[null,"EMP158","Anna","Ferngood","2002-08-09","1st Shift","Yola Young","TG","Training Group","Yakima",40,14,560]
[null,"EMP212","Anna","Finnerty","2002-08-09","3rd Shift","Yola Young","TG","Training Group","Yakima",40,14,560]
[null,"EMP193","Dave","Nelson","2002-08-27","1st Shift","Yola Young","TG","Training Group","Yakima",40,23,{"$f":"K101*L101","v":920}]

{"sheet":"Sheet2","index":1,"n_rows":0,"n_cols":0,"rows_kept":0,"cut":false,"hidden":false,"merged":[]}

{"sheet":"Sheet3","index":2,"n_rows":101,"n_cols":2,"rows_kept":101,"cut":false,"hidden":false,"merged":[]}
[]
[]
[]
[null,"EmpID"]
[{"$f":"ISNA(MATCH(Sheet1!B5,Sheet3!$B$5:$B$99,FALSE))","v":false},"EMP123"]
[{"$f":"ISNA(MATCH(Sheet1!B6,Sheet3!$B$5:$B$99,FALSE))","v":false},"EMP124"]
[{"$f":"ISNA(MATCH(Sheet1!B7,Sheet3!$B$5:$B$99,FALSE))","v":false},"EMP125"]
[{"$f":"ISNA(MATCH(Sheet1!B8,Sheet3!$B$5:$B$99,FALSE))","v":false},"EMP126"]
[{"$f":"ISNA(MATCH(Sheet1!B9,Sheet3!$B$5:$B$99,FALSE))","v":false},"EMP127"]
[{"$f":"ISNA(MATCH(Sheet1!B10,Sheet3!$B$5:$B$99,FALSE))","v":false},"EMP128"]
[{"$f":"ISNA(MATCH(Sheet1!B11,Sheet3!$B$5:$B$99,FALSE))","v":false},"EMP129"]
[{"$f":"ISNA(MATCH(Sheet1!B12,Sheet3!$B$5:$B$99,FALSE))","v":false},"EMP130"]
[{"$f":"ISNA(MATCH(Sheet1!B13,Sheet3!$B$5:$B$99,FALSE))","v":false},"EMP131"]
[{"$f":"ISNA(MATCH(Sheet1!B14,Sheet3!$B$5:$B$99,FALSE))","v":false},"EMP132"]
[{"$f":"ISNA(MATCH(Sheet1!B15,Sheet3!$B$5:$B$99,FALSE))","v":false},"EMP133"]
[{"$f":"ISNA(MATCH(Sheet1!B16,Sheet3!$B$5:$B$99,FALSE))","v":false},"EMP134"]
[{"$f":"ISNA(MATCH(Sheet1!B17,Sheet3!$B$5:$B$99,FALSE))","v":false},"EMP135"]
[{"$f":"ISNA(MATCH(Sheet1!B18,Sheet3!$B$5:$B$99,FALSE))","v":false},"EMP136"]
[{"$f":"ISNA(MATCH(Sheet1!B19,Sheet3!$B$5:$B$99,FALSE))","v":false},"EMP138"]
[{"$f":"ISNA(MATCH(Sheet1!B20,Sheet3!$B$5:$B$99,FALSE))","v":false},"EMP139"]
[{"$f":"ISNA(MATCH(Sheet1!B21,Sheet3!$B$5:$B$99,FALSE))","v":false},"EMP140"]
[{"$f":"ISNA(MATCH(Sheet1!B22,Sheet3!$B$5:$B$99,FALSE))","v":false},"EMP141"]
[{"$f":"ISNA(MATCH(Sheet1!B23,Sheet3!$B$5:$B$99,FALSE))","v":false},"EMP194"]
[{"$f":"ISNA(MATCH(Sheet1!B24,Sheet3!$B$5:$B$99,FALSE))","v":false},"EMP142"]
[{"$f":"ISNA(MATCH(Sheet1!B25,Sheet3!$B$5:$B$99,FALSE))","v":false},"EMP143"]
[{"$f":"ISNA(MATCH(Sheet1!B26,Sheet3!$B$5:$B$99,FALSE))","v":false},"EMP197"]
[{"$f":"ISNA(MATCH(Sheet1!B27,Sheet3!$B$5:$B$99,FALSE))","v":false},"EMP209"]
[{"$f":"ISNA(MATCH(Sheet1!B28,Sheet3!$B$5:$B$99,FALSE))","v":false},"EMP144"]
[{"$f":"ISNA(MATCH(Sheet1!B29,Sheet3!$B$5:$B$99,FALSE))","v":false},"EMP198"]
[{"$f":"ISNA(MATCH(Sheet1!B30,Sheet3!$B$5:$B$99,FALSE))","v":false},"EMP145"]
[{"$f":"ISNA(MATCH(Sheet1!B31,Sheet3!$B$5:$B$99,FALSE))","v":false},"EMP199"]
[{"$f":"ISNA(MATCH(Sheet1!B32,Sheet3!$B$5:$B$99,FALSE))","v":false},"EMP147"]
[{"$f":"ISNA(MATCH(Sheet1!B33,Sheet3!$B$5:$B$99,FALSE))","v":false},"EMP200"]
[{"$f":"ISNA(MATCH(Sheet1!B34,Sheet3!$B$5:$B$99,FALSE))","v":false},"EMP148"]
[{"$f":"ISNA(MATCH(Sheet1!B35,Sheet3!$B$5:$B$99,FALSE))","v":false},"EMP149"]
[{"$f":"ISNA(MATCH(Sheet1!B36,Sheet3!$B$5:$B$99,FALSE))","v":true},"EMP150"]
[{"$f":"ISNA(MATCH(Sheet1!B37,Sheet3!$B$5:$B$99,FALSE))","v":false},"EMP151"]
[{"$f":"ISNA(MATCH(Sheet1!B38,Sheet3!$B$5:$B$99,FALSE))","v":false},"EMP152"]
[{"$f":"ISNA(MATCH(Sheet1!B39,Sheet3!$B$5:$B$99,FALSE))","v":false},"EMP206"]
[{"$f":"ISNA(MATCH(Sheet1!B40,Sheet3!$B$5:$B$99,FALSE))","v":false},"EMP153"]
[{"$f":"ISNA(MATCH(Sheet1!B41,Sheet3!$B$5:$B$99,FALSE))","v":false},"EMP201"]
[{"$f":"ISNA(MATCH(Sheet1!B42,Sheet3!$B$5:$B$99,FALSE))","v":false},"EMP207"]
[{"$f":"ISNA(MATCH(Sheet1!B43,Sheet3!$B$5:$B$99,FALSE))","v":false},"EMP154"]
[{"$f":"ISNA(MATCH(Sheet1!B44,Sheet3!$B$5:$B$99,FALSE))","v":false},"EMP155"]
[{"$f":"ISNA(MATCH(Sheet1!B45,Sheet3!$B$5:$B$99,FALSE))","v":false},"EMP156"]
[{"$f":"ISNA(MATCH(Sheet1!B46,Sheet3!$B$5:$B$99,FALSE))","v":false},"EMP210"]
[{"$f":"ISNA(MATCH(Sheet1!B47,Sheet3!$B$5:$B$99,FALSE))","v":false},"EMP157"]
[{"$f":"ISNA(MATCH(Sheet1!B48,Sheet3!$B$5:$B$99,FALSE))","v":false},"EMP158"]
[{"$f":"ISNA(MATCH(Sheet1!B49,Sheet3!$B$5:$B$99,FALSE))","v":false},"EMP202"]
[{"$f":"ISNA(MATCH(Sheet1!B50,Sheet3!$B$5:$B$99,FALSE))","v":false},"EMP212"]
[{"$f":"ISNA(MATCH(Sheet1!B51,Sheet3!$B$5:$B$99,FALSE))","v":false},"EMP214"]
[{"$f":"ISNA(MATCH(Sheet1!B52,Sheet3!$B$5:$B$99,FALSE))","v":false},"EMP213"]
[{"$f":"ISNA(MATCH(Sheet1!B53,Sheet3!$B$5:$B$99,FALSE))","v":false},"EMP160"]
[{"$f":"ISNA(MATCH(Sheet1!B54,Sheet3!$B$5:$B$99,FALSE))","v":false},"EMP161"]
[{"$f":"ISNA(MATCH(Sheet1!B55,Sheet3!$B$5:$B$99,FALSE))","v":false},"EMP162"]
[{"$f":"ISNA(MATCH(Sheet1!B56,Sheet3!$B$5:$B$99,FALSE))","v":false},"EMP163"]
[{"$f":"ISNA(MATCH(Sheet1!B57,Sheet3!$B$5:$B$99,FALSE))","v":false},"EMP164"]
[{"$f":"ISNA(MATCH(Sheet1!B58,Sheet3!$B$5:$B$99,FALSE))","v":false},"EMP165"]
[{"$f":"ISNA(MATCH(Sheet1!B59,Sheet3!$B$5:$B$99,FALSE))","v":false},"EMP166"]
[{"$f":"ISNA(MATCH(Sheet1!B60,Sheet3!$B$5:$B$99,FALSE))","v":false},"EMP167"]
[{"$f":"ISNA(MATCH(Sheet1!B61,Sheet3!$B$5:$B$99,FALSE))","v":false},"EMP203"]
[{"$f":"ISNA(MATCH(Sheet1!B62,Sheet3!$B$5:$B$99,FALSE))","v":false},"EMP168"]
[{"$f":"ISNA(MATCH(Sheet1!B63,Sheet3!$B$5:$B$99,FALSE))","v":false},"EMP159"]
[{"$f":"ISNA(MATCH(Sheet1!B64,Sheet3!$B$5:$B$99,FALSE))","v":false},"EMP169"]
[{"$f":"ISNA(MATCH(Sheet1!B65,Sheet3!$B$5:$B$99,FALSE))","v":false},"EMP170"]
[{"$f":"ISNA(MATCH(Sheet1!B66,Sheet3!$B$5:$B$99,FALSE))","v":false},"EMP171"]
[{"$f":"ISNA(MATCH(Sheet1!B67,Sheet3!$B$5:$B$99,FALSE))","v":false},"EMP195"]
[{"$f":"ISNA(MATCH(Sheet1!B68,Sheet3!$B$5:$B$99,FALSE))","v":false},"EMP172"]
[{"$f":"ISNA(MATCH(Sheet1!B69,Sheet3!$B$5:$B$99,FALSE))","v":false},"EMP173"]
[{"$f":"ISNA(MATCH(Sheet1!B70,Sheet3!$B$5:$B$99,FALSE))","v":false},"EMP173"]
[{"$f":"ISNA(MATCH(Sheet1!B71,Sheet3!$B$5:$B$99,FALSE))","v":false},"EMP174"]
[{"$f":"ISNA(MATCH(Sheet1!B72,Sheet3!$B$5:$B$99,FALSE))","v":true},"EMP174"]
[{"$f":"ISNA(MATCH(Sheet1!B73,Sheet3!$B$5:$B$99,FALSE))","v":false},"EMP175"]
[{"$f":"ISNA(MATCH(Sheet1!B74,Sheet3!$B$5:$B$99,FALSE))","v":false},"EMP175"]
[{"$f":"ISNA(MATCH(Sheet1!B75,Sheet3!$B$5:$B$99,FALSE))","v":false},"EMP176"]
[{"$f":"ISNA(MATCH(Sheet1!B76,Sheet3!$B$5:$B$99,FALSE))","v":false},"EMP176"]
[{"$f":"ISNA(MATCH(Sheet1!B77,Sheet3!$B$5:$B$99,FALSE))","v":false},"EMP177"]
[{"$f":"ISNA(MATCH(Sheet1!B78,Sheet3!$B$5:$B$99,FALSE))","v":false},"EMP177"]
[{"$f":"ISNA(MATCH(Sheet1!B79,Sheet3!$B$5:$B$99,FALSE))","v":false},"EMP178"]
[{"$f":"ISNA(MATCH(Sheet1!B80,Sheet3!$B$5:$B$99,FALSE))","v":false},"EMP179"]
[{"$f":"ISNA(MATCH(Sheet1!B81,Sheet3!$B$5:$B$99,FALSE))","v":false},"EMP180"]
[{"$f":"ISNA(MATCH(Sheet1!B82,Sheet3!$B$5:$B$99,FALSE))","v":false},"EMP181"]
[{"$f":"ISNA(MATCH(Sheet1!B83,Sheet3!$B$5:$B$99,FALSE))","v":false},"EMP182"]
[{"$f":"ISNA(MATCH(Sheet1!B84,Sheet3!$B$5:$B$99,FALSE))","v":false},"EMP183"]
[{"$f":"ISNA(MATCH(Sheet1!B85,Sheet3!$B$5:$B$99,FALSE))","v":false},"EMP184"]
[{"$f":"ISNA(MATCH(Sheet1!B86,Sheet3!$B$5:$B$99,FALSE))","v":false},"EMP185"]
[{"$f":"ISNA(MATCH(Sheet1!B87,Sheet3!$B$5:$B$99,FALSE))","v":false},"EMP196"]
[{"$f":"ISNA(MATCH(Sheet1!B88,Sheet3!$B$5:$B$99,FALSE))","v":false},"EMP186"]
[{"$f":"ISNA(MATCH(Sheet1!B89,Sheet3!$B$5:$B$99,FALSE))","v":false},"EMP187"]
[{"$f":"ISNA(MATCH(Sheet1!B90,Sheet3!$B$5:$B$99,FALSE))","v":false},"EMP188"]
[{"$f":"ISNA(MATCH(Sheet1!B91,Sheet3!$B$5:$B$99,FALSE))","v":false},"EMP189"]
[{"$f":"ISNA(MATCH(Sheet1!B92,Sheet3!$B$5:$B$99,FALSE))","v":false},"EMP205"]
[{"$f":"ISNA(MATCH(Sheet1!B93,Sheet3!$B$5:$B$99,FALSE))","v":false},"EMP190"]
[{"$f":"ISNA(MATCH(Sheet1!B94,Sheet3!$B$5:$B$99,FALSE))","v":false},"EMP192"]
[{"$f":"ISNA(MATCH(Sheet1!B95,Sheet3!$B$5:$B$99,FALSE))","v":false},"EMP191"]
[{"$f":"ISNA(MATCH(Sheet1!B96,Sheet3!$B$5:$B$99,FALSE))","v":false},"EMP193"]
[{"$f":"ISNA(MATCH(Sheet1!B97,Sheet3!$B$5:$B$99,FALSE))","v":false},"EMP204"]
[{"$f":"ISNA(MATCH(Sheet1!B98,Sheet3!$B$5:$B$99,FALSE))","v":false},"EMP211"]
[{"$f":"ISNA(MATCH(Sheet1!B99,Sheet3!$B$5:$B$99,FALSE))","v":false},"EMP208"]
[{"$f":"ISNA(MATCH(Sheet1!B100,Sheet3!$B$5:$B$99,FALSE))","v":false}]
[{"$f":"ISNA(MATCH(Sheet1!B101,Sheet3!$B$5:$B$99,FALSE))","v":false}]